Workbook

Sheet Tablica
A1: PRIKAZ RASPOLAGANJA PO KATASTARSKIM ČESTICAMA I OBLICIMA RASPOLAGANJA
A2: r.br | B2: županija | C2: općina | D2: katastarska općina naziv | E2: katastarska općina brojčana oznaka | F2: katastarska čestica broj | G2: katastarska čestica površina m2 | H2: katastarska čestica način uporabe/katastarska kultura | I2: katastarska čestica predviđeni oblik raspolaganja | J2: katastarska čestica specifičnosti | K2: katastarska čestica dosadašnji oblik raspolaganja | L2: katastarska čestica trajanje raspolaganja (do datuma) | M2: NAPOMENA
A3: 1 | B3: 2 | C3: 3 | D3: 4 | E3: 5 | F3: 6 | G3: 7 | H3: 8 | I3: 9 | J3: 10 | K3: 11 | L3: 12 | M3: 13
A4: 1 | B4: VII BJELOVARSKO-BILOGORSKA | C4: ŠANDROVAC | D4: LASOVAC | E4: 301183 | F4: 112/24 | G4: 3571 | H4: ORANICA | I4: PRODAJA | J4: P3
A5: =A4+1 -> 2 | B5: VII BJELOVARSKO-BILOGORSKA | C5: ŠANDROVAC | D5: LASOVAC | E5: 301183 | F5: 16/1 | G5: 5877 | H5: LIVADA | I5: ZAKUP | J5: P3/MN, DIO U G.P. | M5: DIO K.Č., SUVLASNIŠTVO
A6: =A5+1 -> 3 | B6: VII BJELOVARSKO-BILOGORSKA | C6: ŠANDROVAC | D6: LASOVAC | E6: 301183 | F6: 181/3 | G6: 680 | H6: LIVADA | I6: ZAKUP | J6: P3
A7: 4 | B7: VII BJELOVARSKO-BILOGORSKA | C7: ŠANDROVAC | D7: LASOVAC | E7: 301183 | F7: 191/7 | G7: 241 | H7: LIVADA | I7: ZAKUP | J7: P3 | M7: DIO K.Č., SUVLASNIŠTVO
A8: 5 | B8: VII BJELOVARSKO-BILOGORSKA | C8: ŠANDROVAC | D8: LASOVAC | E8: 301183 | F8: 202/38 | G8: 4107 | H8: ORANICA | I8: ZAKUP | J8: P3, DIO ČESTICE U SUSTAVU PLANIRANOG JAVNOG NAVODNJAVANJA | K8: ZAKUP | L8: 09.12.2045.
A9: 6 | B9: VII BJELOVARSKO-BILOGORSKA | C9: ŠANDROVAC | D9: LASOVAC | E9: 301183 | F9: 202/8 | G9: 1065 | H9: LIVADA | I9: ZAKUP | J9: P3, DIO U G.P., U SUSTAVU PLANIRANOG JAVNOG NAVODNJAVANJA
A10: 7 | B10: VII BJELOVARSKO-BILOGORSKA | C10: ŠANDROVAC | D10: LASOVAC | E10: 301183 | F10: 202/9 | G10: 29 | H10: ORANICA | I10: ZAKUP | J10: P3, U SUSTAVU PLANIRANOG JAVNOG NAVODNJAVANJA
A11: 8 | B11: VII BJELOVARSKO-BILOGORSKA | C11: ŠANDROVAC | D11: LASOVAC | E11: 301183 | F11: 299/3 | G11: 784 | H11: ORANICA | I11: PRODAJA | J11: PŠ | K11: PRIVREMENO KORIŠTENJE POLJOPRIVREDNOG ZEMLJIŠTA U VLASNIŠTVU RH | L11: 2024-01-10
A12: 9 | B12: VII BJELOVARSKO-BILOGORSKA | C12: ŠANDROVAC | D12: LASOVAC | E12: 301183 | F12: 303/19 | G12: 1500 | H12: ORANICA | I12: ZAKUP | J12: P3/PŠ | M12: DIO K.Č., SUVLASNIŠTVO
A13: 10 | B13: VII BJELOVARSKO-BILOGORSKA | C13: ŠANDROVAC | D13: LASOVAC | E13: 301183 | F13: 303/21 | G13: 3291 | H13: ORANICA | I13: ZAKUP | J13: P3
A14: 11 | B14: VII BJELOVARSKO-BILOGORSKA | C14: ŠANDROVAC | D14: LASOVAC | E14: 301183 | F14: 322/1 | G14: 417 | H14: LIVADA | I14: ZAKUP | J14: PŠ
A15: 12 | B15: VII BJELOVARSKO-BILOGORSKA | C15: ŠANDROVAC | D15: LASOVAC | E15: 301183 | F15: 420/1 | G15: 1892 | H15: ORANICA | I15: ZAKUP | J15: P3, DIO ČESTICE U SUSTAVU PLANIRANOG JAVNOG NAVODNJAVANJA
A16: 13 | B16: VII BJELOVARSKO-BILOGORSKA | C16: ŠANDROVAC | D16: LASOVAC | E16: 301183 | F16: 434/3 | G16: 2158 | H16: ORANICA | I16: ZAKUP | J16: P3, U SUSTAVU PLANIRANOG JAVNOG NAVODNJAVANJA | K16: ZAKUP | L16: 09.12.2045.
A17: 14 | B17: VII BJELOVARSKO-BILOGORSKA | C17: ŠANDROVAC | D17: LASOVAC | E17: 301183 | F17: 436/3 | G17: 820 | H17: LIVADA | I17: ZAKUP | J17: P3, U SUSTAVU PLANIRANOG JAVNOG NAVODNJAVANJA
A18: 15 | B18: VII BJELOVARSKO-BILOGORSKA | C18: ŠANDROVAC | D18: LASOVAC | E18: 301183 | F18: 448 | G18: 1550 | H18: ORANICA | I18: ZAKUP | J18: P3/MN, DIO U G.P., DIO ČESTICE U SUSTAVU PLANIRANOG JAVNOG NAVODNJAVANJA
A19: 16 | B19: VII BJELOVARSKO-BILOGORSKA | C19: ŠANDROVAC | D19: LASOVAC | E19: 301183 | F19: 456 | G19: 3507 | H19: ORANICA | I19: ZAKUP | J19: P3, U SUSTAVU PLANIRANOG JAVNOG NAVODNJAVANJA
A20: 17 | B20: VII BJELOVARSKO-BILOGORSKA | C20: ŠANDROVAC | D20: LASOVAC | E20: 301183 | F20: 482/1 | G20: 2723 | H20: ORANICA | I20: ZAKUP | J20: P3, U SUSTAVU PLANIRANOG JAVNOG NAVODNJAVANJA | K20: ZAKUP | L20: 09.12.2045.
A21: 18 | B21: VII BJELOVARSKO-BILOGORSKA | C21: ŠANDROVAC | D21: LASOVAC | E21: 301183 | F21: 482/2 | G21: 5143 | H21: ORANICA | I21: ZAKUP | J21: P3, U SUSTAVU PLANIRANOG JAVNOG NAVODNJAVANJA | K21: ZAKUP | L21: 09.12.2045.
A22: 19 | B22: VII BJELOVARSKO-BILOGORSKA | C22: ŠANDROVAC | D22: LASOVAC | E22: 301183 | F22: 482/5 | G22: 1252 | H22: ORANICA | I22: ZAKUP | J22: P3, U SUSTAVU PLANIRANOG JAVNOG NAVODNJAVANJA | K22: ZAKUP | L22: 09.12.2045.
A23: 20 | B23: VII BJELOVARSKO-BILOGORSKA | C23: ŠANDROVAC | D23: LASOVAC | E23: 301183 | F23: 483/2 | G23: 788 | H23: ORANICA | I23: ZAKUP | J23: P3, U SUSTAVU PLANIRANOG JAVNOG NAVODNJAVANJA | K23: ZAKUP | L23: 09.12.2045.
A24: 21 | B24: VII BJELOVARSKO-BILOGORSKA | C24: ŠANDROVAC | D24: LASOVAC | E24: 301183 | F24: 484/5 | G24: 6161 | H24: ORANICA | I24: ZAKUP | J24: P3, U SUSTAVU PLANIRANOG JAVNOG NAVODNJAVANJA | K24: ZAKUP | L24: 09.12.2045.
A25: 22 | B25: VII BJELOVARSKO-BILOGORSKA | C25: ŠANDROVAC | D25: LASOVAC | E25: 301183 | F25: 487/6 | G25: 5560 | H25: LIVADA | I25: ZAKUP | J25: PŠ, U SUSTAVU PLANIRANOG JAVNOG NAVODNJAVANJA
A26: 23 | B26: VII BJELOVARSKO-BILOGORSKA | C26: ŠANDROVAC | D26: LASOVAC | E26: 301183 | F26: 492/6 | G26: 2507 | H26: ORANICA | I26: ZAKUP | J26: P3, DIO ČESTICE U SUSTAVU PLANIRANOG JAVNOG NAVODNJAVANJA | K26: ZAKUP | L26: 09.12.2045.
A27: 24 | B27: VII BJELOVARSKO-BILOGORSKA | C27: ŠANDROVAC | D27: LASOVAC | E27: 301183 | F27: 495/3 | G27: 2982 | H27: LIVADA | I27: ZAKUP | J27: PŠ, DIO ČESTICE U SUSTAVU PLANIRANOG JAVNOG NAVODNJAVANJA
A28: 25 | B28: VII BJELOVARSKO-BILOGORSKA | C28: ŠANDROVAC | D28: LASOVAC | E28: 301183 | F28: 499/2 | G28: 255 | H28: ORANICA | I28: ZAKUP | J28: PŠ/P3, U SUSTAVU PLANIRANOG JAVNOG NAVODNJAVANJA
A29: 26 | B29: VII BJELOVARSKO-BILOGORSKA | C29: ŠANDROVAC | D29: LASOVAC | E29: 301183 | F29: 501/1 | G29: 1762 | H29: ORANICA | I29: ZAKUP | J29: PŠ/P3, U SUSTAVU PLANIRANOG JAVNOG NAVODNJAVANJA
A30: 27 | B30: VII BJELOVARSKO-BILOGORSKA | C30: ŠANDROVAC | D30: LASOVAC | E30: 301183 | F30: 501/2 | G30: 1791 | H30: ORANICA | I30: ZAKUP | J30: PŠ/P3, U SUSTAVU PLANIRANOG JAVNOG NAVODNJAVANJA
A31: 28 | B31: VII BJELOVARSKO-BILOGORSKA | C31: ŠANDROVAC | D31: LASOVAC | E31: 301183 | F31: 510/16 | G31: 525 | H31: ORANICA | I31: ZAKUP | J31: P3, U SUSTAVU PLANIRANOG JAVNOG NAVODNJAVANJA | K31: ZAKUP | L31: 09.12.2045.
A32: 29 | B32: VII BJELOVARSKO-BILOGORSKA | C32: ŠANDROVAC | D32: LASOVAC | E32: 301183 | F32: 510/30 | G32: 2381 | H32: LIVADA | I32: ZAKUP | J32: PŠ/P3, U SUSTAVU PLANIRANOG JAVNOG NAVODNJAVANJA
A33: 30 | B33: VII BJELOVARSKO-BILOGORSKA | C33: ŠANDROVAC | D33: LASOVAC | E33: 301183 | F33: 513/1 | G33: 12284 | H33: ORANICA | I33: ZAKUP | J33: P3, U SUSTAVU PLANIRANOG JAVNOG NAVODNJAVANJA
A34: 31 | B34: VII BJELOVARSKO-BILOGORSKA | C34: ŠANDROVAC | D34: LASOVAC | E34: 301183 | F34: 531/3 | G34: 30008 | H34: ORANICA | I34: ZAKUP | J34: P2, U SUSTAVU PLANIRANOG JAVNOG NAVODNJAVANJA | K34: ZAKUP | L34: 09.12.2045.
A35: 32 | B35: VII BJELOVARSKO-BILOGORSKA | C35: ŠANDROVAC | D35: LASOVAC | E35: 301183 | F35: 533/4 | G35: 1636 | H35: ORANICA | I35: ZAKUP | J35: P3, U SUSTAVU PLANIRANOG JAVNOG NAVODNJAVANJA | K35: ZAKUP | L35: 09.12.2045.
A36: 33 | B36: VII BJELOVARSKO-BILOGORSKA | C36: ŠANDROVAC | D36: LASOVAC | E36: 301183 | F36: 533/6 | G36: 3708 | H36: ORANICA | I36: ZAKUP | J36: P3, U SUSTAVU PLANIRANOG JAVNOG NAVODNJAVANJA | K36: ZAKUP | L36: 09.12.2045.
A37: 34 | B37: VII BJELOVARSKO-BILOGORSKA | C37: ŠANDROVAC | D37: LASOVAC | E37: 301183 | F37: 535/1 | G37: 45349 | H37: ORANICA | I37: ZAKUP | J37: P2, U SUSTAVU PLANIRANOG JAVNOG NAVODNJAVANJA | K37: ZAKUP | L37: 09.12.2045.
A38: 35 | B38: VII BJELOVARSKO-BILOGORSKA | C38: ŠANDROVAC | D38: LASOVAC | E38: 301183 | F38: 546/1 | G38: 658 | H38: ORANICA | I38: ZAKUP | J38: P3, U SUSTAVU PLANIRANOG JAVNOG NAVODNJAVANJA
A39: 36 | B39: VII BJELOVARSKO-BILOGORSKA | C39: ŠANDROVAC | D39: LASOVAC | E39: 301183 | F39: 546/4 | G39: 1543 | H39: ORANICA | I39: ZAKUP | J39: P3, U SUSTAVU PLANIRANOG JAVNOG NAVODNJAVANJA
A40: 37 | B40: VII BJELOVARSKO-BILOGORSKA | C40: ŠANDROVAC | D40: LASOVAC | E40: 301183 | F40: 547/1 | G40: 352 | H40: ORANICA | I40: ZAKUP | J40: PŠ, U SUSTAVU PLANIRANOG JAVNOG NAVODNJAVANJA
A41: 38 | B41: VII BJELOVARSKO-BILOGORSKA | C41: ŠANDROVAC | D41: LASOVAC | E41: 301183 | F41: 547/2 | G41: 76 | H41: ORANICA | I41: ZAKUP | J41: PŠ, U SUSTAVU PLANIRANOG JAVNOG NAVODNJAVANJA
A42: 39 | B42: VII BJELOVARSKO-BILOGORSKA | C42: ŠANDROVAC | D42: LASOVAC | E42: 301183 | F42: 548/1 | G42: 1737 | H42: ORANICA | I42: ZAKUP | J42: P3, U SUSTAVU PLANIRANOG JAVNOG NAVODNJAVANJA
A43: 40 | B43: VII BJELOVARSKO-BILOGORSKA | C43: ŠANDROVAC | D43: LASOVAC | E43: 301183 | F43: 548/2 | G43: 421 | H43: ORANICA | I43: ZAKUP | J43: PŠ,U SUSTAVU PLANIRANOG JAVNOG NAVODNJAVANJA
A44: 41 | B44: VII BJELOVARSKO-BILOGORSKA | C44: ŠANDROVAC | D44: LASOVAC | E44: 301183 | F44: 562/2 | G44: 1374 | H44: ORANICA | I44: ZAKUP | J44: P3, U SUSTAVU PLANIRANOG JAVNOG NAVODNJAVANJA
A45: 42 | B45: VII BJELOVARSKO-BILOGORSKA | C45: ŠANDROVAC | D45: LASOVAC | E45: 301183 | F45: 562/3 | G45: 1824 | H45: ORANICA | I45: ZAKUP | J45: P3, U SUSTAVU PLANIRANOG JAVNOG NAVODNJAVANJA
A46: 43 | B46: VII BJELOVARSKO-BILOGORSKA | C46: ŠANDROVAC | D46: LASOVAC | E46: 301183 | F46: 562/4 | G46: 2338 | H46: ORANICA | I46: ZAKUP | J46: P3, U SUSTAVU PLANIRANOG JAVNOG NAVODNJAVANJA
A47: 44 | B47: VII BJELOVARSKO-BILOGORSKA | C47: ŠANDROVAC | D47: LASOVAC | E47: 301183 | F47: 562/5 | G47: 2532 | H47: ORANICA | I47: ZAKUP | J47: P3, U SUSTAVU PLANIRANOG JAVNOG NAVODNJAVANJA
A48: 45 | B48: VII BJELOVARSKO-BILOGORSKA | C48: ŠANDROVAC | D48: LASOVAC | E48: 301183 | F48: 563/2 | G48: 3938 | H48: ORANICA | I48: ZAKUP | J48: PŠ/P3, U SUSTAVU PLANIRANOG JAVNOG NAVODNJAVANJA | K48: ZAKUP | L48: 23.12.2020. - 23.12.2045.
A49: 46 | B49: VII BJELOVARSKO-BILOGORSKA | C49: ŠANDROVAC | D49: LASOVAC | E49: 301183 | F49: 565/1 | G49: 36 | H49: ORANICA | I49: ZAKUP | J49: PŠ, U SUSTAVU PLANIRANOG JAVNOG NAVODNJAVANJA
A50: 47 | B50: VII BJELOVARSKO-BILOGORSKA | C50: ŠANDROVAC | D50: LASOVAC | E50: 301183 | F50: 565/2 | G50: 396 | H50: ORANICA | I50: ZAKUP | J50: PŠ, U SUSTAVU PLANIRANOG JAVNOG NAVODNJAVANJA
A51: 48 | B51: VII BJELOVARSKO-BILOGORSKA | C51: ŠANDROVAC | D51: LASOVAC | E51: 301183 | F51: 565/3 | G51: 619 | H51: ORANICA | I51: ZAKUP | J51: PŠ, U SUSTAVU PLANIRANOG JAVNOG NAVODNJAVANJA
A52: 49 | B52: VII BJELOVARSKO-BILOGORSKA | C52: ŠANDROVAC | D52: LASOVAC | E52: 301183 | F52: 566/1 | G52: 1270 | H52: ORANICA | I52: ZAKUP | J52: PŠ/P3, U SUSTAVU PLANIRANOG JAVNOG NAVODNJAVANJA | K52: ZAKUP | L52: 09.12.2045.
A53: 50 | B53: VII BJELOVARSKO-BILOGORSKA | C53: ŠANDROVAC | D53: LASOVAC | E53: 301183 | F53: 566/3 | G53: 1960 | H53: ORANICA | I53: ZAKUP | J53: PŠ/P3, U SUSTAVU PLANIRANOG JAVNOG NAVODNJAVANJA | K53: ZAKUP | L53: 09.12.2045.
A54: 51 | B54: VII BJELOVARSKO-BILOGORSKA | C54: ŠANDROVAC | D54: LASOVAC | E54: 301183 | F54: 566/4 | G54: 2183 | H54: ORANICA | I54: ZAKUP | J54: PŠ/P3, U SUSTAVU PLANIRANOG JAVNOG NAVODNJAVANJA | K54: ZAKUP | L54: 09.12.2045.
A55: 52 | B55: VII BJELOVARSKO-BILOGORSKA | C55: ŠANDROVAC | D55: LASOVAC | E55: 301183 | F55: 566/5 | G55: 424 | H55: ORANICA | I55: ZAKUP | J55: PŠ/P3, U SUSTAVU PLANIRANOG JAVNOG NAVODNJAVANJA | K55: ZAKUP | L55: 09.12.2045.
A56: 53 | B56: VII BJELOVARSKO-BILOGORSKA | C56: ŠANDROVAC | D56: LASOVAC | E56: 301183 | F56: 566/6 | G56: 424 | H56: ORANICA | I56: ZAKUP | J56: PŠ/P3, U SUSTAVU PLANIRANOG JAVNOG NAVODNJAVANJA
A57: 54 | B57: VII BJELOVARSKO-BILOGORSKA | C57: ŠANDROVAC | D57: LASOVAC | E57: 301183 | F57: 566/7 | G57: 424 | H57: ORANICA | I57: ZAKUP | J57: PŠ/P3, U SUSTAVU PLANIRANOG JAVNOG NAVODNJAVANJA | K57: ZAKUP | L57: 09.12.2045.
A58: 55 | B58: VII BJELOVARSKO-BILOGORSKA | C58: ŠANDROVAC | D58: LASOVAC | E58: 301183 | F58: 568/1 | G58: 5985 | H58: LIVADA | I58: ZAKUP | J58: PŠ/P3, DIO ČESTICE U SUSTAVU PLANIRANOG JAVNOG NAVODNJAVANJA
A59: 56 | B59: VII BJELOVARSKO-BILOGORSKA | C59: ŠANDROVAC | D59: LASOVAC | E59: 301183 | F59: 569/1 | G59: 1079 | H59: ORANICA | I59: ZAKUP | J59: PŠ/P3, U SUSTAVU PLANIRANOG JAVNOG NAVODNJAVANJA
A60: 57 | B60: VII BJELOVARSKO-BILOGORSKA | C60: ŠANDROVAC | D60: LASOVAC | E60: 301183 | F60: 569/10 | G60: 1018 | H60: ORANICA | I60: ZAKUP | J60: PŠ/P3, U SUSTAVU PLANIRANOG JAVNOG NAVODNJAVANJA
A61: 58 | B61: VII BJELOVARSKO-BILOGORSKA | C61: ŠANDROVAC | D61: LASOVAC | E61: 301183 | F61: 569/11 | G61: 2100 | H61: ORANICA | I61: ZAKUP | J61: PŠ/P3, U SUSTAVU PLANIRANOG JAVNOG NAVODNJAVANJA
A62: 59 | B62: VII BJELOVARSKO-BILOGORSKA | C62: ŠANDROVAC | D62: LASOVAC | E62: 301183 | F62: 569/2 | G62: 525 | H62: ORANICA | I62: ZAKUP | J62: P3, U SUSTAVU PLANIRANOG JAVNOG NAVODNJAVANJA
A63: 60 | B63: VII BJELOVARSKO-BILOGORSKA | C63: ŠANDROVAC | D63: LASOVAC | E63: 301183 | F63: 569/3 | G63: 129 | H63: ORANICA | I63: ZAKUP | J63: P3, U SUSTAVU PLANIRANOG JAVNOG NAVODNJAVANJA
A64: 61 | B64: VII BJELOVARSKO-BILOGORSKA | C64: ŠANDROVAC | D64: LASOVAC | E64: 301183 | F64: 569/4 | G64: 126 | H64: ORANICA | I64: ZAKUP | J64: P3, U SUSTAVU PLANIRANOG JAVNOG NAVODNJAVANJA
A65: 62 | B65: VII BJELOVARSKO-BILOGORSKA | C65: ŠANDROVAC | D65: LASOVAC | E65: 301183 | F65: 569/6 | G65: 633 | H65: ORANICA | I65: ZAKUP | J65: P3, U SUSTAVU PLANIRANOG JAVNOG NAVODNJAVANJA
A66: 63 | B66: VII BJELOVARSKO-BILOGORSKA | C66: ŠANDROVAC | D66: LASOVAC | E66: 301183 | F66: 569/7 | G66: 539 | H66: ORANICA | I66: ZAKUP | J66: P3, U SUSTAVU PLANIRANOG JAVNOG NAVODNJAVANJA
A67: 64 | B67: VII BJELOVARSKO-BILOGORSKA | C67: ŠANDROVAC | D67: LASOVAC | E67: 301183 | F67: 569/8 | G67: 921 | H67: ORANICA | I67: ZAKUP | J67: PŠ/P3, U SUSTAVU PLANIRANOG JAVNOG NAVODNJAVANJA
A68: 65 | B68: VII BJELOVARSKO-BILOGORSKA | C68: ŠANDROVAC | D68: LASOVAC | E68: 301183 | F68: 570/2 | G68: 1561 | H68: LIVADA | I68: ZAKUP | J68: PŠ, U SUSTAVU PLANIRANOG JAVNOG NAVODNJAVANJA
A69: =A68+1 -> 66 | B69: VII BJELOVARSKO-BILOGORSKA | C69: ŠANDROVAC | D69: LASOVAC | E69: 301183 | F69: 570/4 | G69: 2564 | H69: LIVADA | I69: ZAKUP | J69: PŠ, U SUSTAVU PLANIRANOG JAVNOG NAVODNJAVANJA
A70: 67 | B70: VII BJELOVARSKO-BILOGORSKA | C70: ŠANDROVAC | D70: LASOVAC | E70: 301183 | F70: 571/4 | G70: 946 | H70: LIVADA | I70: ZAKUP | J70: PŠ
A71: 68 | B71: VII BJELOVARSKO-BILOGORSKA | C71: ŠANDROVAC | D71: LASOVAC | E71: 301183 | F71: 573/1 | G71: 683 | H71: LIVADA | I71: ZAKUP | J71: PŠ/P3, U SUSTAVU PLANIRANOG JAVNOG NAVODNJAVANJA
A72: 69 | B72: VII BJELOVARSKO-BILOGORSKA | C72: ŠANDROVAC | D72: LASOVAC | E72: 301183 | F72: 573/1 | G72: 1676 | H72: ORANICA | I72: ZAKUP | J72: PŠ/P3, U SUSTAVU PLANIRANOG JAVNOG NAVODNJAVANJA
A73: 70 | B73: VII BJELOVARSKO-BILOGORSKA | C73: ŠANDROVAC | D73: LASOVAC | E73: 301183 | F73: 573/2 | G73: 2140 | H73: ORANICA | I73: ZAKUP | J73: PŠ/P3, U SUSTAVU PLANIRANOG JAVNOG NAVODNJAVANJA
A74: 71 | B74: VII BJELOVARSKO-BILOGORSKA | C74: ŠANDROVAC | D74: LASOVAC | E74: 301183 | F74: 574/1 | G74: 1651 | H74: ORANICA | I74: ZAKUP | J74: PŠ/P3, U SUSTAVU PLANIRANOG JAVNOG NAVODNJAVANJA
A75: 72 | B75: VII BJELOVARSKO-BILOGORSKA | C75: ŠANDROVAC | D75: LASOVAC | E75: 301183 | F75: 574/1 | G75: 899 | H75: LIVADA | I75: ZAKUP | J75: PŠ/P3, U SUSTAVU PLANIRANOG JAVNOG NAVODNJAVANJA
A76: 73 | B76: VII BJELOVARSKO-BILOGORSKA | C76: ŠANDROVAC | D76: LASOVAC | E76: 301183 | F76: 576/3 | G76: 1967 | H76: LIVADA | I76: ZAKUP | J76: PŠ
A77: 74 | B77: VII BJELOVARSKO-BILOGORSKA | C77: ŠANDROVAC | D77: LASOVAC | E77: 301183 | F77: 578/1 | G77: 1360 | H77: LIVADA | I77: ZAKUP | J77: PŠ
A78: 75 | B78: VII BJELOVARSKO-BILOGORSKA | C78: ŠANDROVAC | D78: LASOVAC | E78: 301183 | F78: 579/2 | G78: 626 | H78: LIVADA | I78: ZAKUP | J78: PŠ
A79: 76 | B79: VII BJELOVARSKO-BILOGORSKA | C79: ŠANDROVAC | D79: LASOVAC | E79: 301183 | F79: 581 | G79: 4320 | H79: LIVADA | I79: PRODAJA | J79: PŠ | K79: PRIVREMENO KORIŠTENJE POLJOPRIVREDNOG ZEMLJIŠTA U VLASNIŠTVU RH | L79: 09/2022
A80: 77 | B80: VII BJELOVARSKO-BILOGORSKA | C80: ŠANDROVAC | D80: LASOVAC | E80: 301183 | F80: 584/8 | G80: 975 | H80: LIVADA | I80: ZAKUP | J80: PŠ
A81: 78 | B81: VII BJELOVARSKO-BILOGORSKA | C81: ŠANDROVAC | D81: LASOVAC | E81: 301183 | F81: 585/2 | G81: 960 | H81: LIVADA | I81: ZAKUP | J81: PŠ
A82: 79 | B82: VII BJELOVARSKO-BILOGORSKA | C82: ŠANDROVAC | D82: LASOVAC | E82: 301183 | F82: 585/3 | G82: 1259 | H82: LIVADA | I82: ZAKUP | J82: PŠ
A83: 80 | B83: VII BJELOVARSKO-BILOGORSKA | C83: ŠANDROVAC | D83: LASOVAC | E83: 301183 | F83: 591/2 | G83: 1345 | H83: LIVADA | I83: ZAKUP | J83: PŠ/P3, DIO ČESTICE U SUSTAVU PLANIRANOG JAVNOG NAVODNJAVANJA
A84: 81 | B84: VII BJELOVARSKO-BILOGORSKA | C84: ŠANDROVAC | D84: LASOVAC | E84: 301183 | F84: 591/3 | G84: 1798 | H84: LIVADA | I84: ZAKUP | J84: PŠ/P3, DIO ČESTICE U SUSTAVU PLANIRANOG JAVNOG NAVODNJAVANJA
A85: 82 | B85: VII BJELOVARSKO-BILOGORSKA | C85: ŠANDROVAC | D85: LASOVAC | E85: 301183 | F85: 593 | G85: 10315 | H85: ORANICA | I85: ZAKUP | J85: P3, U SUSTAVU PLANIRANOG JAVNOG NAVODNJAVANJA | K85: ZAKUP | L85: 09.12.2045.
A86: 83 | B86: VII BJELOVARSKO-BILOGORSKA | C86: ŠANDROVAC | D86: LASOVAC | E86: 301183 | F86: 594/6 | G86: 1180 | H86: ORANICA | I86: ZAKUP | J86: P3, U SUSTAVU PLANIRANOG JAVNOG NAVODNJAVANJA
A87: 84 | B87: VII BJELOVARSKO-BILOGORSKA | C87: ŠANDROVAC | D87: LASOVAC | E87: 301183 | F87: 595/6 | G87: 899 | H87: ORANICA | I87: ZAKUP | J87: PŠ
A88: 85 | B88: VII BJELOVARSKO-BILOGORSKA | C88: ŠANDROVAC | D88: LASOVAC | E88: 301183 | F88: 595/6 | G88: 892 | H88: LIVADA | I88: ZAKUP | J88: PŠ
A89: 86 | B89: VII BJELOVARSKO-BILOGORSKA | C89: ŠANDROVAC | D89: LASOVAC | E89: 301183 | F89: 596/6 | G89: 971 | H89: LIVADA | I89: ZAKUP | J89: PŠ
A90: 87 | B90: VII BJELOVARSKO-BILOGORSKA | C90: ŠANDROVAC | D90: LASOVAC | E90: 301183 | F90: 597/6 | G90: 295 | H90: LIVADA | I90: ZAKUP | J90: PŠ
A91: 88 | B91: VII BJELOVARSKO-BILOGORSKA | C91: ŠANDROVAC | D91: LASOVAC | E91: 301183 | F91: 599/2 | G91: 1313 | H91: ORANICA | I91: ZAKUP | J91: P3
A92: 89 | B92: VII BJELOVARSKO-BILOGORSKA | C92: ŠANDROVAC | D92: LASOVAC | E92: 301183 | F92: 601 | G92: 1313 | H92: ORANICA | I92: ZAKUP | J92: P3, DIO ČESTICE U SUSTAVU PLANIRANOG JAVNOG NAVODNJAVANJA | M92: DIO K.Č., SUVLASNIŠTVO
A93: 90 | B93: VII BJELOVARSKO-BILOGORSKA | C93: ŠANDROVAC | D93: LASOVAC | E93: 301183 | F93: 615/1 | G93: 3845 | H93: LIVADA | I93: ZAKUP | J93: P3 | M93: DIO K.Č., SUVLASNIŠTVO
A94: 91 | B94: VII BJELOVARSKO-BILOGORSKA | C94: ŠANDROVAC | D94: LASOVAC | E94: 301183 | F94: 620/2 | G94: 1856 | H94: LIVADA | I94: ZAKUP | J94: P3
A95: 92 | B95: VII BJELOVARSKO-BILOGORSKA | C95: ŠANDROVAC | D95: LASOVAC | E95: 301183 | F95: 622/2 | G95: 539 | H95: LIVADA | I95: ZAKUP | J95: P3/PŠ, DIO ČESTICE U SUSTAVU PLANIRANOG JAVNOG NAVODNJAVANJA | K95: ZAKUP | L95: 23.12.2020. - 23.12.2045.
A96: 93 | B96: VII BJELOVARSKO-BILOGORSKA | C96: ŠANDROVAC | D96: LASOVAC | E96: 301183 | F96: 622/2 | G96: 8797 | H96: ORANICA | I96: ZAKUP | J96: P3/PŠ, DIO ČESTICE U SUSTAVU PLANIRANOG JAVNOG NAVODNJAVANJA | K96: ZAKUP | L96: 23.12.2020. - 23.12.2045.
A97: 94 | B97: VII BJELOVARSKO-BILOGORSKA | C97: ŠANDROVAC | D97: LASOVAC | E97: 301183 | F97: 622/3 | G97: 3237 | H97: ORANICA | I97: ZAKUP | J97: P3/PŠ, DIO ČESTICE U SUSTAVU PLANIRANOG JAVNOG NAVODNJAVANJA | K97: ZAKUP | L97: 23.12.2020. - 23.12.2045. | M97: DIO K.Č., SUVLASNIŠTVO
A98: 95 | B98: VII BJELOVARSKO-BILOGORSKA | C98: ŠANDROVAC | D98: LASOVAC | E98: 301183 | F98: 622/4 | G98: 1741 | H98: ORANICA | I98: ZAKUP | J98: P3/PŠ, DIO ČESTICE U SUSTAVU PLANIRANOG JAVNOG NAVODNJAVANJA | K98: ZAKUP | L98: 23.12.2020. - 23.12.2045.
A99: 96 | B99: VII BJELOVARSKO-BILOGORSKA | C99: ŠANDROVAC | D99: LASOVAC | E99: 301183 | F99: 624 | G99: 3248 | H99: LIVADA | I99: ZAKUP | J99: P3/PŠ, DIO ČESTICE U SUSTAVU PLANIRANOG JAVNOG NAVODNJAVANJA
A100: 97 | B100: VII BJELOVARSKO-BILOGORSKA | C100: ŠANDROVAC | D100: LASOVAC | E100: 301183 | F100: 627/1 | G100: 2543 | H100: ORANICA | I100: ZAKUP | J100: P3, DIO ČESTICE U SUSTAVU PLANIRANOG JAVNOG NAVODNJAVANJA | K100: ZAKUP | L100: 23.12.2020. - 23.12.2045.
A101: 98 | B101: VII BJELOVARSKO-BILOGORSKA | C101: ŠANDROVAC | D101: LASOVAC | E101: 301183 | F101: 627/2 | G101: 2546 | H101: ORANICA | I101: ZAKUP | J101: P3, DIO ČESTICE U SUSTAVU PLANIRANOG JAVNOG NAVODNJAVANJA | K101: ZAKUP | L101: 23.12.2020. - 23.12.2045.
A102: 99 | B102: VII BJELOVARSKO-BILOGORSKA | C102: ŠANDROVAC | D102: LASOVAC | E102: 301183 | F102: 628/1 | G102: 5837 | H102: ORANICA | I102: ZAKUP | J102: PŠ/P3, DIO ČESTICE U SUSTAVU PLANIRANOG JAVNOG NAVODNJAVANJA | K102: ZAKUP | L102: 23.12.2020. - 23.12.2045.
A103: 100 | B103: VII BJELOVARSKO-BILOGORSKA | C103: ŠANDROVAC | D103: LASOVAC | E103: 301183 | F103: 645/1 | G103: 4881 | H103: ORANICA | I103: ZAKUP | J103: PŠ/P3, DIO ČESTICE U SUSTAVU PLANIRANOG JAVNOG NAVODNJAVANJA | M103: DIO K.Č., SUVLASNIŠTVO
A104: 101 | B104: VII BJELOVARSKO-BILOGORSKA | C104: ŠANDROVAC | D104: LASOVAC | E104: 301183 | F104: 656/2 | G104: 975 | H104: ORANICA | I104: ZAKUP | J104: P2, DIO ČESTICE U SUSTAVU PLANIRANOG JAVNOG NAVODNJAVANJA
A105: 102 | B105: VII BJELOVARSKO-BILOGORSKA | C105: ŠANDROVAC | D105: LASOVAC | E105: 301183 | F105: 658/2 | G105: 1140 | H105: ORANICA | I105: ZAKUP | J105: P2, U SUSTAVU PLANIRANOG JAVNOG NAVODNJAVANJA
A106: 103 | B106: VII BJELOVARSKO-BILOGORSKA | C106: ŠANDROVAC | D106: LASOVAC | E106: 301183 | F106: 664 | G106: 2090 | H106: ORANICA | I106: ZAKUP | J106: P3, U SUSTAVU PLANIRANOG JAVNOG NAVODNJAVANJA
A107: 104 | B107: VII BJELOVARSKO-BILOGORSKA | C107: ŠANDROVAC | D107: LASOVAC | E107: 301183 | F107: 671/1 | G107: 5776 | H107: ORANICA | I107: ZAKUP | J107: P2, U SUSTAVU PLANIRANOG JAVNOG NAVODNJAVANJA
A108: 105 | B108: VII BJELOVARSKO-BILOGORSKA | C108: ŠANDROVAC | D108: LASOVAC | E108: 301183 | F108: 672/2 | G108: 4960 | H108: ORANICA | I108: ZAKUP | J108: P2, U SUSTAVU PLANIRANOG JAVNOG NAVODNJAVANJA | K108: ZAKUP | L108: 30.12.2020. - 30.12.2045.
A109: 106 | B109: VII BJELOVARSKO-BILOGORSKA | C109: ŠANDROVAC | D109: LASOVAC | E109: 301183 | F109: 672/3 | G109: 3316 | H109: ORANICA | I109: ZAKUP | J109: P2, U SUSTAVU PLANIRANOG JAVNOG NAVODNJAVANJA | K109: ZAKUP | L109: 30.12.2020. - 30.12.2045.
A110: 107 | B110: VII BJELOVARSKO-BILOGORSKA | C110: ŠANDROVAC | D110: LASOVAC | E110: 301183 | F110: 676 | G110: 4082 | H110: ORANICA | I110: ZAKUP | J110: PŠ/P3, U SUSTAVU PLANIRANOG JAVNOG NAVODNJAVANJA
A111: 108 | B111: VII BJELOVARSKO-BILOGORSKA | C111: ŠANDROVAC | D111: LASOVAC | E111: 301183 | F111: 677 | G111: 705 | H111: ORANICA | I111: ZAKUP | J111: P3, U SUSTAVU PLANIRANOG JAVNOG NAVODNJAVANJA
A112: 109 | B112: VII BJELOVARSKO-BILOGORSKA | C112: ŠANDROVAC | D112: LASOVAC | E112: 301183 | F112: 678/4 | G112: 6942 | H112: ORANICA | I112: ZAKUP | J112: P2, U SUSTAVU PLANIRANOG JAVNOG NAVODNJAVANJA
A113: 110 | B113: VII BJELOVARSKO-BILOGORSKA | C113: ŠANDROVAC | D113: LASOVAC | E113: 301183 | F113: 684/1 | G113: 1428 | H113: ORANICA | I113: ZAKUP | J113: P2, U SUSTAVU PLANIRANOG JAVNOG NAVODNJAVANJA | K113: ZAKUP | L113: 23.12.2020. - 23.12.2045.
A114: 111 | B114: VII BJELOVARSKO-BILOGORSKA | C114: ŠANDROVAC | D114: LASOVAC | E114: 301183 | F114: 684/2 | G114: 5837 | H114: ORANICA | I114: ZAKUP | J114: P2, U SUSTAVU PLANIRANOG JAVNOG NAVODNJAVANJA | K114: ZAKUP | L114: 23.12.2020. - 23.12.2045.
A115: 112 | B115: VII BJELOVARSKO-BILOGORSKA | C115: ŠANDROVAC | D115: LASOVAC | E115: 301183 | F115: 684/3 | G115: 2061 | H115: ORANICA | I115: ZAKUP | J115: P2, U SUSTAVU PLANIRANOG JAVNOG NAVODNJAVANJA | K115: ZAKUP | L115: 23.12.2020. - 23.12.2045.
A116: 113 | B116: VII BJELOVARSKO-BILOGORSKA | C116: ŠANDROVAC | D116: LASOVAC | E116: 301183 | F116: 684/4 | G116: 2057 | H116: ORANICA | I116: ZAKUP | J116: P2, U SUSTAVU PLANIRANOG JAVNOG NAVODNJAVANJA | K116: ZAKUP | L116: 23.12.2020. - 23.12.2045.
A117: 114 | B117: VII BJELOVARSKO-BILOGORSKA | C117: ŠANDROVAC | D117: LASOVAC | E117: 301183 | F117: 685/3 | G117: 5848 | H117: ORANICA | I117: ZAKUP | J117: P2, U SUSTAVU PLANIRANOG JAVNOG NAVODNJAVANJA
A118: 115 | B118: VII BJELOVARSKO-BILOGORSKA | C118: ŠANDROVAC | D118: LASOVAC | E118: 301183 | F118: 687/4 | G118: 4413 | H118: ORANICA | I118: ZAKUP | J118: P2, U SUSTAVU PLANIRANOG JAVNOG NAVODNJAVANJA
A119: 116 | B119: VII BJELOVARSKO-BILOGORSKA | C119: ŠANDROVAC | D119: LASOVAC | E119: 301183 | F119: 687/4 | G119: 468 | H119: VINOGRAD | I119: ZAKUP | J119: P2, U SUSTAVU PLANIRANOG JAVNOG NAVODNJAVANJA
A120: 117 | B120: VII BJELOVARSKO-BILOGORSKA | C120: ŠANDROVAC | D120: LASOVAC | E120: 301183 | F120: 692/4 | G120: 2849 | H120: ORANICA | I120: ZAKUP | J120: P2/P3, DIO ČESTICE U SUSTAVU PLANIRANOG JAVNOG NAVODNJAVANJA
A121: 118 | B121: VII BJELOVARSKO-BILOGORSKA | C121: ŠANDROVAC | D121: LASOVAC | E121: 301183 | F121: 693/1 | G121: 7876 | H121: ORANICA | I121: ZAKUP | J121: P2/P3/PŠ, U SUSTAVU PLANIRANOG JAVNOG NAVODNJAVANJA
A122: 119 | B122: VII BJELOVARSKO-BILOGORSKA | C122: ŠANDROVAC | D122: LASOVAC | E122: 301183 | F122: 789/5 | G122: 2809 | H122: ORANICA | I122: ZAKUP | J122: P2/P3, DIO ČESTICE U SUSTAVU PLANIRANOG JAVNOG NAVODNJAVANJA
A123: 120 | B123: VII BJELOVARSKO-BILOGORSKA | C123: ŠANDROVAC | D123: LASOVAC | E123: 301183 | F123: 789/7 | G123: 2917 | H123: ORANICA | I123: ZAKUP | J123: P2, U SUSTAVU PLANIRANOG JAVNOG NAVODNJAVANJA
A124: 121 | B124: VII BJELOVARSKO-BILOGORSKA | C124: ŠANDROVAC | D124: LASOVAC | E124: 301183 | F124: 80/5 | G124: 942 | H124: LIVADA | I124: ZAKUP | J124: Š1/PŠ
A125: 122 | B125: VII BJELOVARSKO-BILOGORSKA | C125: ŠANDROVAC | D125: LASOVAC | E125: 301183 | F125: 81/24 | G125: 1554 | H125: PAŠNJAK | I125: ZAKUP | J125: P3
A126: 123 | B126: VII BJELOVARSKO-BILOGORSKA | C126: ŠANDROVAC | D126: LASOVAC | E126: 301183 | F126: 81/29 | G126: 1683 | H126: PAŠNJAK | I126: ZAKUP | J126: P3
A127: 124 | B127: VII BJELOVARSKO-BILOGORSKA | C127: ŠANDROVAC | D127: LASOVAC | E127: 301183 | F127: 974/6 | G127: 65 | H127: ORANICA | I127: ZAKUP | J127: PŠ, U SUSTAVU PLANIRANOG JAVNOG NAVODNJAVANJA
A128: 125 | B128: VII BJELOVARSKO-BILOGORSKA | C128: ŠANDROVAC | D128: LASOVAC | E128: 301183 | F128: 994/25 | G128: 90 | H128: ORANICA | I128: PRODAJA | J128: PŠ | M128: 994/1/A
A129: 126 | B129: VII BJELOVARSKO-BILOGORSKA | C129: ŠANDROVAC | D129: PUPELICA | E129: 301353 | F129: 16/1 | G129: 399 | H129: ORANICA | I129: ZAKUP | J129: Š1/PŠ
A130: 127 | B130: VII BJELOVARSKO-BILOGORSKA | C130: ŠANDROVAC | D130: PUPELICA | E130: 301353 | F130: 165/4 | G130: 1687 | H130: ORANICA | I130: ZAKUP | J130: PŠ
A131: 128 | B131: VII BJELOVARSKO-BILOGORSKA | C131: ŠANDROVAC | D131: PUPELICA | E131: 301353 | F131: 165/4 | G131: 1547 | H131: LIVADA | I131: ZAKUP | J131: PŠ
A132: 129 | B132: VII BJELOVARSKO-BILOGORSKA | C132: ŠANDROVAC | D132: PUPELICA | E132: 301353 | F132: 166/4 | G132: 504 | H132: LIVADA | I132: ZAKUP | J132: PŠ
A133: 130 | B133: VII BJELOVARSKO-BILOGORSKA | C133: ŠANDROVAC | D133: PUPELICA | E133: 301353 | F133: 169/1 | G133: 3536 | H133: ORANICA | I133: ZAKUP | J133: PŠ
A134: =A133+1 -> 131 | B134: VII BJELOVARSKO-BILOGORSKA | C134: ŠANDROVAC | D134: PUPELICA | E134: 301353 | F134: 17/1 | G134: 543 | H134: ORANICA | I134: ZAKUP | J134: PŠ
A135: 132 | B135: VII BJELOVARSKO-BILOGORSKA | C135: ŠANDROVAC | D135: PUPELICA | E135: 301353 | F135: 179/3 | G135: 1050 | H135: ORANICA | I135: ZAKUP | J135: PŠ | M135: DIO K.Č., SUVLASNIŠTVO
A136: 133 | B136: VII BJELOVARSKO-BILOGORSKA | C136: ŠANDROVAC | D136: PUPELICA | E136: 301353 | F136: 179/4 | G136: 1571 | H136: ORANICA | I136: ZAKUP | J136: PŠ | M136: DIO K.Č., SUVLASNIŠTVO
A137: 134 | B137: VII BJELOVARSKO-BILOGORSKA | C137: ŠANDROVAC | D137: PUPELICA | E137: 301353 | F137: 186/1 | G137: 1654 | H137: LIVADA | I137: ZAKUP | J137: PŠ
A138: 135 | B138: VII BJELOVARSKO-BILOGORSKA | C138: ŠANDROVAC | D138: PUPELICA | E138: 301353 | F138: 186/1 | G138: 3057 | H138: ORANICA | I138: ZAKUP | J138: PŠ
A139: 136 | B139: VII BJELOVARSKO-BILOGORSKA | C139: ŠANDROVAC | D139: PUPELICA | E139: 301353 | F139: 189/1 | G139: 7654 | H139: ORANICA | I139: PRODAJA | J139: PŠ | K139: PRIVREMENO KORIŠTENJE POLJOPRIVREDNOG ZEMLJIŠTA U VLASNIŠTVU RH | L139: 09/2022
A140: 137 | B140: VII BJELOVARSKO-BILOGORSKA | C140: ŠANDROVAC | D140: PUPELICA | E140: 301353 | F140: 207/47 | G140: 1672 | H140: ORANICA | I140: ZAKUP | J140: PŠ
A141: 138 | B141: VII BJELOVARSKO-BILOGORSKA | C141: ŠANDROVAC | D141: PUPELICA | E141: 301353 | F141: 207/48 | G141: 2510 | H141: ORANICA | I141: ZAKUP | J141: Š1/PŠ
A142: 139 | B142: VII BJELOVARSKO-BILOGORSKA | C142: ŠANDROVAC | D142: PUPELICA | E142: 301353 | F142: 247/1 | G142: 604 | H142: ORANICA | I142: ZAKUP | J142: PŠ
A143: =A142+1 -> 140 | B143: VII BJELOVARSKO-BILOGORSKA | C143: ŠANDROVAC | D143: PUPELICA | E143: 301353 | F143: 247/2 | G143: 694 | H143: ORANICA | I143: ZAKUP | J143: PŠ
A144: 141 | B144: VII BJELOVARSKO-BILOGORSKA | C144: ŠANDROVAC | D144: PUPELICA | E144: 301353 | F144: 248/2 | G144: 5003 | H144: LIVADA | I144: PRODAJA | J144: Š1/PŠ | K144: PRIVREMENO KORIŠTENJE POLJOPRIVREDNOG ZEMLJIŠTA U VLASNIŠTVU RH | L144: 09/2022
A145: 142 | B145: VII BJELOVARSKO-BILOGORSKA | C145: ŠANDROVAC | D145: PUPELICA | E145: 301353 | F145: 248/3 | G145: 8600 | H145: ORANICA | I145: PRODAJA | J145: Š1/PŠ | K145: PRIVREMENO KORIŠTENJE POLJOPRIVREDNOG ZEMLJIŠTA U VLASNIŠTVU RH | L145: 09/2022
A146: 143 | B146: VII BJELOVARSKO-BILOGORSKA | C146: ŠANDROVAC | D146: PUPELICA | E146: 301353 | F146: 248/4 | G146: 5125 | H146: LIVADA | I146: PRODAJA | J146: Š1/PŠ | K146: PRIVREMENO KORIŠTENJE POLJOPRIVREDNOG ZEMLJIŠTA U VLASNIŠTVU RH | L146: 09/2022
A147: 144 | B147: VII BJELOVARSKO-BILOGORSKA | C147: ŠANDROVAC | D147: PUPELICA | E147: 301353 | F147: 269/4 | G147: 504 | H147: LIVADA | I147: ZAKUP | J147: PŠ
A148: 145 | B148: VII BJELOVARSKO-BILOGORSKA | C148: ŠANDROVAC | D148: PUPELICA | E148: 301353 | F148: 270/3 | G148: 1032 | H148: LIVADA | I148: ZAKUP | J148: PŠ
A149: 146 | B149: VII BJELOVARSKO-BILOGORSKA | C149: ŠANDROVAC | D149: PUPELICA | E149: 301353 | F149: 273/2 | G149: 6787 | H149: ORANICA | I149: ZAKUP | J149: PŠ
A150: 147 | B150: VII BJELOVARSKO-BILOGORSKA | C150: ŠANDROVAC | D150: PUPELICA | E150: 301353 | F150: 278/2 | G150: 3532 | H150: ORANICA | I150: ZAKUP | J150: PŠ
A151: 148 | B151: VII BJELOVARSKO-BILOGORSKA | C151: ŠANDROVAC | D151: PUPELICA | E151: 301353 | F151: 278/4 | G151: 1795 | H151: ORANICA | I151: ZAKUP | J151: PŠ
A152: 149 | B152: VII BJELOVARSKO-BILOGORSKA | C152: ŠANDROVAC | D152: PUPELICA | E152: 301353 | F152: 285/2 | G152: 3629 | H152: ORANICA | I152: ZAKUP | J152: PŠ
A153: 150 | B153: VII BJELOVARSKO-BILOGORSKA | C153: ŠANDROVAC | D153: PUPELICA | E153: 301353 | F153: 315/3 | G153: 960 | H153: ORANICA | I153: ZAKUP | J153: V/PŠ
A154: 151 | B154: VII BJELOVARSKO-BILOGORSKA | C154: ŠANDROVAC | D154: PUPELICA | E154: 301353 | F154: 315/4 | G154: 410 | H154: ORANICA | I154: ZAKUP | J154: V/PŠ
A155: 152 | B155: VII BJELOVARSKO-BILOGORSKA | C155: ŠANDROVAC | D155: PUPELICA | E155: 301353 | F155: 316/2 | G155: 2413 | H155: ORANICA | I155: PRODAJA | J155: V/PŠ | K155: PRIVREMENO KORIŠTENJE POLJOPRIVREDNOG ZEMLJIŠTA U VLASNIŠTVU RH | L155: 2024-04-21
A156: 153 | B156: VII BJELOVARSKO-BILOGORSKA | C156: ŠANDROVAC | D156: PUPELICA | E156: 301353 | F156: 316/3 | G156: 8175 | H156: ORANICA | I156: PRODAJA | J156: V/PŠ | K156: PRIVREMENO KORIŠTENJE POLJOPRIVREDNOG ZEMLJIŠTA U VLASNIŠTVU RH | L156: 2024-04-21
A157: 154 | B157: VII BJELOVARSKO-BILOGORSKA | C157: ŠANDROVAC | D157: PUPELICA | E157: 301353 | F157: 316/4 | G157: 1137 | H157: ORANICA | I157: ZAKUP | J157: PŠ
A158: 155 | B158: VII BJELOVARSKO-BILOGORSKA | C158: ŠANDROVAC | D158: PUPELICA | E158: 301353 | F158: 375/10 | G158: 338 | H158: ORANICA | I158: ZAKUP | J158: Š1/P3
A159: 156 | B159: VII BJELOVARSKO-BILOGORSKA | C159: ŠANDROVAC | D159: PUPELICA | E159: 301353 | F159: 375/8 | G159: 1356 | H159: PAŠNJAK | I159: ZAKUP | J159: Š1/P3
A160: 157 | B160: VII BJELOVARSKO-BILOGORSKA | C160: ŠANDROVAC | D160: PUPELICA | E160: 301353 | F160: 420/2 | G160: 1525 | H160: LIVADA | I160: PRODAJA | K160: PRIVREMENO KORIŠTENJE POLJOPRIVREDNOG ZEMLJIŠTA U VLASNIŠTVU RH | L160: 2024-04-21
A161: 158 | B161: VII BJELOVARSKO-BILOGORSKA | C161: ŠANDROVAC | D161: PUPELICA | E161: 301353 | F161: 420/3 | G161: 1525 | H161: LIVADA | I161: PRODAJA | K161: PRIVREMENO KORIŠTENJE POLJOPRIVREDNOG ZEMLJIŠTA U VLASNIŠTVU RH | L161: 2024-04-21
A162: 159 | B162: VII BJELOVARSKO-BILOGORSKA | C162: ŠANDROVAC | D162: PUPELICA | E162: 301353 | F162: 421/3 | G162: 608 | H162: LIVADA | I162: ZAKUP | J162: V/PŠ
A163: 160 | B163: VII BJELOVARSKO-BILOGORSKA | C163: ŠANDROVAC | D163: PUPELICA | E163: 301353 | F163: 427/6 | G163: 1043 | H163: LIVADA | I163: ZAKUP | J163: V/Š1/PŠ
A164: 161 | B164: VII BJELOVARSKO-BILOGORSKA | C164: ŠANDROVAC | D164: PUPELICA | E164: 301353 | F164: 496/4 | G164: 3453 | H164: ORANICA | I164: PRODAJA | J164: P3 | K164: PRIVREMENO KORIŠTENJE POLJOPRIVREDNOG ZEMLJIŠTA U VLASNIŠTVU RH | L164: 09/2022
A165: 162 | B165: VII BJELOVARSKO-BILOGORSKA | C165: ŠANDROVAC | D165: PUPELICA | E165: 301353 | F165: 514 | G165: 1259 | H165: VOĆNJAK | I165: ZAKUP | J165: P3/MN | M165: DIO U G.P.
A166: 163 | B166: VII BJELOVARSKO-BILOGORSKA | C166: ŠANDROVAC | D166: PUPELICA | E166: 301353 | F166: 514 | G166: 8452 | H166: ORANICA | I166: ZAKUP | J166: P3/MN | K166: ZAKUP | L166: 09.12.2045. | M166: DIO U G.P.
A167: 164 | B167: VII BJELOVARSKO-BILOGORSKA | C167: ŠANDROVAC | D167: PUPELICA | E167: 301353 | F167: 524/5 | G167: 616 | H167: ORANICA | I167: ZAKUP | J167: P3
A168: 165 | B168: VII BJELOVARSKO-BILOGORSKA | C168: ŠANDROVAC | D168: PUPELICA | E168: 301353 | F168: 524/5 | G168: 220 | H168: VOĆNJAK | I168: ZAKUP | J168: P3
A169: 166 | B169: VII BJELOVARSKO-BILOGORSKA | C169: ŠANDROVAC | D169: PUPELICA | E169: 301353 | F169: 524/7 | G169: 732 | H169: ORANICA | I169: PRODAJA | J169: P3 | K169: PRIVREMENO KORIŠTENJE POLJOPRIVREDNOG ZEMLJIŠTA U VLASNIŠTVU RH | L169: 2024-04-21
A170: 167 | B170: VII BJELOVARSKO-BILOGORSKA | C170: ŠANDROVAC | D170: PUPELICA | E170: 301353 | F170: 524/8 | G170: 729 | H170: ORANICA | I170: ZAKUP | J170: P3
A171: 168 | B171: VII BJELOVARSKO-BILOGORSKA | C171: ŠANDROVAC | D171: PUPELICA | E171: 301353 | F171: 536/1 | G171: 5089 | H171: ORANICA | I171: ZAKUP | J171: P3
A172: 169 | B172: VII BJELOVARSKO-BILOGORSKA | C172: ŠANDROVAC | D172: PUPELICA | E172: 301353 | F172: 537/2 | G172: 360 | H172: VOĆNJAK | I172: ZAKUP | J172: P3
A173: 170 | B173: VII BJELOVARSKO-BILOGORSKA | C173: ŠANDROVAC | D173: PUPELICA | E173: 301353 | F173: 537/2 | G173: 3374 | H173: ORANICA | I173: ZAKUP | J173: P3
A174: 171 | B174: VII BJELOVARSKO-BILOGORSKA | C174: ŠANDROVAC | D174: PUPELICA | E174: 301353 | F174: 537/3 | G174: 3489 | H174: ORANICA | I174: ZAKUP | J174: P3
A175: 172 | B175: VII BJELOVARSKO-BILOGORSKA | C175: ŠANDROVAC | D175: PUPELICA | E175: 301353 | F175: 537/3 | G175: 360 | H175: VOĆNJAK | I175: ZAKUP | J175: P3
A176: 173 | B176: VII BJELOVARSKO-BILOGORSKA | C176: ŠANDROVAC | D176: PUPELICA | E176: 301353 | F176: 590/2 | G176: 1309 | H176: ORANICA | I176: ZAKUP | J176: P3
A177: 174 | B177: VII BJELOVARSKO-BILOGORSKA | C177: ŠANDROVAC | D177: PUPELICA | E177: 301353 | F177: 590/5 | G177: 1198 | H177: VINOGRAD | I177: ZAKUP | J177: P3
A178: 175 | B178: VII BJELOVARSKO-BILOGORSKA | C178: ŠANDROVAC | D178: PUPELICA | E178: 301353 | F178: 612/1 | G178: 90 | H178: LIVADA | I178: ZAKUP | J178: P3ILIŠ1
A179: 176 | B179: VII BJELOVARSKO-BILOGORSKA | C179: ŠANDROVAC | D179: PUPELICA | E179: 301353 | F179: 622/2 | G179: 1859 | H179: ORANICA | I179: ZAKUP | J179: P3
A180: 177 | B180: VII BJELOVARSKO-BILOGORSKA | C180: ŠANDROVAC | D180: PUPELICA | E180: 301353 | F180: 622/5 | G180: 1913 | H180: ORANICA | I180: ZAKUP | J180: P3
A181: 178 | B181: VII BJELOVARSKO-BILOGORSKA | C181: ŠANDROVAC | D181: PUPELICA | E181: 301353 | F181: 623/7 | G181: 3956 | H181: ORANICA | I181: ZAKUP | J181: P3
A182: 179 | B182: VII BJELOVARSKO-BILOGORSKA | C182: ŠANDROVAC | D182: PUPELICA | E182: 301353 | F182: 623/7 | G182: 486 | H182: VINOGRAD | I182: ZAKUP | J182: P3
A183: 180 | B183: VII BJELOVARSKO-BILOGORSKA | C183: ŠANDROVAC | D183: PUPELICA | E183: 301353 | F183: 623/7 | G183: 539 | H183: LIVADA | I183: ZAKUP | J183: P3
A184: 181 | B184: VII BJELOVARSKO-BILOGORSKA | C184: ŠANDROVAC | D184: PUPELICA | E184: 301353 | F184: 707/36 | G184: 809 | H184: ORANICA | I184: ZAKUP | J184: P3 | M184: DIO K.Č., SUVLASNIŠTVO
A185: 182 | B185: VII BJELOVARSKO-BILOGORSKA | C185: ŠANDROVAC | D185: PUPELICA | E185: 301353 | F185: 707/38 | G185: 593 | H185: ORANICA | I185: ZAKUP | J185: P3 | M185: DIO K.Č., SUVLASNIŠTVO
A186: 183 | B186: VII BJELOVARSKO-BILOGORSKA | C186: ŠANDROVAC | D186: PUPELICA | E186: 301353 | F186: 707/6 | G186: 3597 | H186: ORANICA | I186: ZAKUP | J186: P3 | M186: DIO K.Č., SUVLASNIŠTVO
A187: 184 | B187: VII BJELOVARSKO-BILOGORSKA | C187: ŠANDROVAC | D187: PUPELICA | E187: 301353 | F187: 708/2 | G187: 1856 | H187: ORANICA | I187: ZAKUP | J187: P3
A188: 185 | B188: VII BJELOVARSKO-BILOGORSKA | C188: ŠANDROVAC | D188: PUPELICA | E188: 301353 | F188: 718 | G188: 4953 | H188: ORANICA | I188: ZAKUP | J188: Š1/P3
A189: =A188+1 -> 186 | B189: VII BJELOVARSKO-BILOGORSKA | C189: ŠANDROVAC | D189: PUPELICA | E189: 301353 | F189: 719 | G189: 432 | H189: VINOGRAD | I189: ZAKUP | J189: PŠ
A190: =A189+1 -> 187 | B190: VII BJELOVARSKO-BILOGORSKA | C190: ŠANDROVAC | D190: PUPELICA | E190: 301353 | F190: 719 | G190: 1557 | H190: ORANICA | I190: ZAKUP | J190: PŠ
A191: =A190+1 -> 188 | B191: VII BJELOVARSKO-BILOGORSKA | C191: ŠANDROVAC | D191: PUPELICA | E191: 301353 | F191: 822 | G191: 1953 | H191: ORANICA | I191: ZAKUP | J191: PŠ | M191: DIO K.Č., SUVLASNIŠTVO
A192: 189 | B192: VII BJELOVARSKO-BILOGORSKA | C192: ŠANDROVAC | D192: PUPELICA | E192: 301353 | F192: 823 | G192: 928 | H192: ORANICA | I192: ZAKUP | J192: PŠ/MN | M192: DIO U G.P., DIO K.Č., SUVLASNIŠTVO
A193: 190 | B193: VII BJELOVARSKO-BILOGORSKA | C193: ŠANDROVAC | D193: PUPELICA | E193: 301353 | F193: 83/5 | G193: 2723 | H193: LIVADA | I193: ZAKUP | J193: PŠ/P3
A194: 191 | B194: VII BJELOVARSKO-BILOGORSKA | C194: ŠANDROVAC | D194: PUPELICA | E194: 301353 | F194: 858/6 | G194: 1942 | H194: LIVADA | I194: ZAKUP | J194: Š1/PŠ
A195: 192 | B195: VII BJELOVARSKO-BILOGORSKA | C195: ŠANDROVAC | D195: PUPELICA | E195: 301353 | F195: 871 | G195: 4395 | H195: LIVADA | I195: ZAKUP | J195: V | M195: DIO K.Č., SUVLASNIŠTVO
A196: 193 | B196: VII BJELOVARSKO-BILOGORSKA | C196: ŠANDROVAC | D196: PUPELICA | E196: 301353 | F196: 881 | G196: 6474 | H196: ORANICA | I196: ZAKUP | J196: PŠ
A197: 194 | B197: VII BJELOVARSKO-BILOGORSKA | C197: ŠANDROVAC | D197: PUPELICA | E197: 301353 | F197: 881 | G197: 2920 | H197: LIVADA | I197: ZAKUP | J197: PŠ
A198: 195 | B198: VII BJELOVARSKO-BILOGORSKA | C198: ŠANDROVAC | D198: PUPELICA | E198: 301353 | F198: 883/10 | G198: 1331 | H198: ORANICA | I198: ZAKUP | J198: PŠ | M198: DIO K.Č., SUVLASNIŠTVO
A199: 196 | B199: VII BJELOVARSKO-BILOGORSKA | C199: ŠANDROVAC | D199: PUPELICA | E199: 301353 | F199: 883/6 | G199: 7 | H199: ORANICA | I199: ZAKUP | J199: PŠ
A200: 197 | B200: VII BJELOVARSKO-BILOGORSKA | C200: ŠANDROVAC | D200: PUPELICA | E200: 301353 | F200: 883/8 | G200: 2180 | H200: ORANICA | I200: ZAKUP | J200: PŠ
... 377 more rows

Sheet Šifrarnici
A1: Kolona 2 | B1: Kolona 3 | C1: Kolona 8 | D1: Kolona 9 | E1: Kolona 11
A2: POPIS ŽUPANIJA U REPUBLICI HRVATSKOJ I GRAD ZAGREB | B2: JLS | C2: Katastarska kultura | D2: Kč oblik raspolagnja | E2: Kč dosadašnji oblik raspolaganja
A3: I ZAGREBAČKA | B3: ANDRIJAŠEVCI | C3: GRADJEVINSKO ZEMLJIŠTE | D3: ZAKUP | E3: ZAKUP
A4: II KRAPINSKO-ZAGORSKA | B4: ANTUNOVAC | C4: LIVADA | D4: ZAKUP ZA RIBNJAKE | E4: ZAKUP ZA RIBNJAKE
A5: III SISAČKO-MOSLAVAČKA | B5: BABINA GREDA | C5: MASLINIK | D5: ZAKUP ZAJEDNIČKIH PAŠNJAKA | E5: ZAKUP ZAJEDNIČKIH PAŠNJAKA
A6: IV KARLOVAČKA | B6: BAKAR | C6: MOČVARA | D6: PRODAJA | E6: PRODAJA
A7: V VARAŽDINSKA | B7: BALE - VALLE | C7: ORANICA | D7: PRIVREMENO KORIŠTENJE POLJOPRIVREDNOG ZEMLJIŠTA U VLASNIŠTVU RH | E7: PRIVREMENO KORIŠTENJE POLJOPRIVREDNOG ZEMLJIŠTA U VLASNIŠTVU RH
A8: VI KOPRIVNIČKO-KRIŽEVAČKA | B8: BARBAN | C8: PAŠNJAK | D8: PRIVREMENO KORIŠTENJE RIBNJAKA U VLASNIŠTVU RH | E8: PRIVREMENO KORIŠTENJE RIBNJAKA U VLASNIŠTVU RH
A9: VII BJELOVARSKO-BILOGORSKA | B9: BARILOVIĆ | C9: RIBNJAK | D9: PRIVREMENO KORIŠTENJE PAŠNJAKA U VLASNIŠTVU RH | E9: PRIVREMENO KORIŠTENJE PAŠNJAKA U VLASNIŠTVU RH
A10: VIII PRIMORSKO-GORANSKA | B10: BAŠKA | C10: ŠUMA | D10: ZAMJENA | E10: ZAMJENA
A11: IX LIČKO-SENJSKA | B11: BAŠKA VODA | C11: TRSTIK | D11: KORIŠTENJE POLJOPRIVREDNOG ZEMLJIŠTA BEZ JAVNOG POZIVA | E11: KORIŠTENJE POLJOPRIVREDNOG ZEMLJIŠTA BEZ JAVNOG POZIVA
A12: X VIROVITIČKO-PODRAVSKA | B12: BEBRINA | C12: VINOGRAD | D12: KORIŠTENJE POLJOPRIVREDNOG ZEMLJIŠTA IZRAVNOM POGODBOM | E12: KORIŠTENJE POLJOPRIVREDNOG ZEMLJIŠTA IZRAVNOM POGODBOM
A13: XI POŽEŠKO-SLAVONSKA | B13: BEDEKOVČINA | C13: VOĆNJAK | D13: RAZVRGNUćE SUVLASNIČKE ZAJEDNICE | E13: RAZVRGNUćE SUVLASNIČKE ZAJEDNICE
A14: XII BRODSKO-POSAVSKA | B14: BEDENICA | C14: VRT | D14: OSNIVANJE PRAVA GRAĐENJA | E14: OSNIVANJE PRAVA GRAĐENJA
A15: XIII ZADARSKA | B15: BEDNJA | C15: NEPLODNO | D15: OSNIVANJE PRAVA SLUŽNOSTI | E15: OSNIVANJE PRAVA SLUŽNOSTI
A16: XIV OSJEČKO-BARANJSKA | B16: BELI MANASTIR | C16: OSTALO | D16: KONCESIJA POLJOPRIVREDNOG ZEMLJIŠTA U VLASNIŠTVU RH | E16: KONCESIJA POLJOPRIVREDNOG ZEMLJIŠTA U VLASNIŠTVU RH
A17: XV ŠIBENSKO-KNINSKA | B17: BELICA | D17: DUGOGODIŠNJI ZAKUP POLJOPRIVREDNOG ZEMLJIŠTA U VLASNIŠTVU RH | E17: DUGOGODIŠNJI ZAKUP POLJOPRIVREDNOG ZEMLJIŠTA U VLASNIŠTVU RH
A18: XVI VUKOVARSKO-SRIJEMSKA | B18: BELIŠĆE | D18: DUGOGODIŠNJI ZAKUP ZA RIBNJAKE | E18: DUGOGODIŠNJI ZAKUP ZA RIBNJAKE
A19: XVII SPLITSKO-DALMATINSKA | B19: BENKOVAC | D19: KONCESIJA ZA RIBNJAKE (KORIŠTENJE RIBNJAKA 2008-2012) | E19: KONCESIJA ZA RIBNJAKE (KORIŠTENJE RIBNJAKA 2008-2012)
A20: XVIII ISTARSKA | B20: BEREK | D20: PRIVATNI RIBNJACI (KOPNENE VODE) | E20: PRIVATNI RIBNJACI (KOPNENE VODE)
A21: XIX DUBROVAČKO-NERETVANSKA | B21: BERETINEC | D21: ZEMLJIŠTE ODREĐENO ZA POVRAT | E21: ZEMLJIŠTE ODREĐENO ZA POVRAT
A22: XX MEĐIMURSKA | B22: BIBINJE
A23: XXI GRAD ZAGREB | B23: BILICE
B24: BILJE
B25: BIOGRAD NA MORU
B26: BISKUPIJA
B27: BISTRA
B28: BIZOVAC
B29: BJELOVAR
B30: BLATO
B31: BOGDANOVCI
B32: BOL
B33: BOROVO
B34: BOSILJEVO
B35: BOŠNJACI
B36: BRCKOVLJANI
B37: BRDOVEC
B38: BRELA
B39: BRESTOVAC
B40: BREZNICA
B41: BREZNIČKI HUM
B42: BRINJE
B43: BROD MORAVICE
B44: BRODSKI STUPNIK
B45: BRTONIGLA - VERTENEGLIO
B46: BUDINŠČINA
B47: BUJE - BUIE
B48: BUKOVLJE
B49: BUZET
B50: CERNA
B51: CERNIK
B52: CEROVLJE
B53: CESTICA
B54: CETINGRAD
B55: CISTA PROVO
B56: CIVLJANE
B57: CRES
B58: CRIKVENICA
B59: CRNAC
B60: ČABAR
B61: ČAČINCI
B62: ČAĐAVICA
B63: ČAGLIN
B64: ČAKOVEC
B65: ČAVLE
B66: ČAZMA
B67: ČEMINAC
B68: ČEPIN
B69: DARDA
B70: DARUVAR
B71: DAVOR
B72: DEKANOVEC
B73: DELNICE
B74: DESINIĆ
B75: DEŽANOVAC
B76: DICMO
B77: DOBRINJ
B78: DOMAŠINEC
B79: DONJA DUBRAVA
B80: DONJA MOTIČINA
B81: DONJA STUBICA
B82: DONJA VOĆA
B83: DONJI ANDRIJEVCI
B84: DONJI KRALJEVEC
B85: DONJI KUKURUZARI
B86: DONJI LAPAC
B87: DONJI MIHOLJAC
B88: DONJI VIDOVEC
B89: DRAGALIĆ
B90: DRAGANIĆ
B91: DRAŽ
B92: DRENOVCI
B93: DRENJE
B94: DRNIŠ
B95: DRNJE
B96: DUBRAVA
B97: DUBRAVICA
B98: DUBROVAČKO PRIMORJE
B99: DUBROVNIK
B100: DUGA RESA
B101: DUGI RAT
B102: DUGO SELO
B103: DUGOPOLJE
B104: DVOR
B105: ĐAKOVO
B106: ĐELEKOVEC
B107: ĐULOVAC
B108: ĐURĐENOVAC
B109: ĐURĐEVAC
B110: ĐURMANEC
B111: ERDUT
B112: ERNESTINOVO
B113: ERVENIK
B114: FARKAŠEVAC
B115: FAŽANA - FASANA
B116: FERDINANDOVAC
B117: FERIČANCI
B118: FUNTANA - FONTANE
B119: FUŽINE
B120: GALOVAC
B121: GARČIN
B122: GAREŠNICA
B123: GENERALSKI STOL
B124: GLINA
B125: GOLA
B126: GORIČAN
B127: GORJANI
B128: GORNJA RIJEKA
B129: GORNJA STUBICA
B130: GORNJA VRBA
B131: GORNJI BOGIĆEVCI
B132: GORNJI KNEGINEC
B133: GORNJI MIHALJEVEC
B134: GOSPIĆ
B135: GRAČAC
B136: GRAČIŠĆE
B137: GRAD ZAGREB
B138: GRADAC
B139: GRADEC
B140: GRADINA
B141: GRADIŠTE
B142: GROŽNJAN - GRISIGNANA
B143: GRUBIŠNO POLJE
B144: GUNDINCI
B145: GUNJA
B146: GVOZD
B147: HERCEGOVAC
B148: HLEBINE
B149: HRAŠĆINA
B150: HRVACE
B151: HRVATSKA DUBICA
B152: HRVATSKA KOSTAJNICA
B153: HUM NA SUTLI
B154: HVAR
B155: ILOK
B156: IMOTSKI
B157: IVANEC
B158: IVANIĆ-GRAD
B159: IVANKOVO
B160: IVANSKA
B161: JAGODNJAK
B162: JAKOVLJE
B163: JAKŠIĆ
B164: JALŽABET
B165: JANJINA
B166: JARMINA
B167: JASENICE
B168: JASENOVAC
B169: JASTREBARSKO
B170: JELENJE
B171: JELSA
B172: JESENJE
B173: JOSIPDOL
B174: KALI
B175: KALINOVAC
B176: KALNIK
B177: KAMANJE
B178: KANFANAR
B179: KAPELA
B180: KAPTOL
B181: KARLOBAG
B182: KARLOVAC
B183: KAROJBA
B184: KASTAV
B185: KAŠTELA
B186: KAŠTELIR-LABINCI - CASTELLIERE-S. DOMENICA
B187: KIJEVO
B188: KISTANJE
B189: KLAKAR
B190: KLANA
B191: KLANJEC
B192: KLENOVNIK
B193: KLINČA SELA
B194: KLIS
B195: KLOŠTAR IVANIĆ
B196: KLOŠTAR PODRAVSKI
B197: KNEŽEVI VINOGRADI
B198: KNIN
B199: KOLAN
B200: KOMIŽA
... 358 more rows
